fUSD/lending_fUSD_20260427
["ID","MTS","AMOUNT","RATE_DAILY","PERIOD"]
[421252361,1777287181068,-500.0,0.000387,120]
[421252362,1777287181077,-217.32462602,0.00038804,7]
[421252363,1777287181086,-348.00533469,0.00038804,2]
[421252364,1777287181095,-1025.61642852,0.00038804,2]
[421252365,1777287181106,-859.92294207,0.00038804,2]
[421252366,1777287181116,-1202.46241871,0.00038834,2]
[421252367,1777287181125,-194.5,0.000389,120]
[421252368,1777287181134,-40919.8,0.00038904,120]
[421252369,1777287181147,-5510.884336,0.00038904,120]
[421252370,1777287181156,-406.931409,0.00038904,120]
[421252371,1777287181166,-325.762595,0.00038904,120]
[421252372,1777287181175,-342.964341,0.00038904,120]
[421252373,1777287181184,-2698.281126,0.00038904,120]
[421252374,1777287181194,-346.42085234,0.00038904,120]
[421252375,1777287181203,-863.36,0.00038904,120]
[421252376,1777287181213,-599.06,0.00038904,120]
[421252377,1777287181222,-640.83,0.00038904,120]
[421252378,1777287181231,-565.53,0.00038904,120]
[421252379,1777287181241,-1211.95,0.00038904,120]
[421252380,1777287181250,-553.4,0.00038904,120]
[421252381,1777287181259,-715.07,0.00038904,120]
[421252382,1777287181269,-938.55,0.00038904,120]
[421252383,1777287181278,-1090.36,0.00038904,120]
[421252384,1777287181288,-634.95,0.00038904,120]
[421252385,1777287181297,-528.14,0.00038904,120]
[421252386,1777287181306,-1072.38,0.00038904,120]
[421252387,1777287181315,-1314.31,0.00038904,120]
[421252388,1777287181324,-703.47,0.00038904,120]
[421252389,1777287181334,-787.64,0.00038904,120]
[421252390,1777287181343,-516.81,0.00038904,120]
[421252391,1777287181352,-2357.31,0.00038904,120]
[421252392,1777287181361,-1649.9,0.00038904,30]
[421252393,1777287181371,-527.75,0.00038904,120]
[421252394,1777287181379,-663.98,0.00038904,120]
[421252395,1777287181388,-752.81,0.00038904,120]
[421252396,1777287181397,-696.22,0.00038904,120]
[421252397,1777287181407,-1446.95,0.00038904,120]
[421252398,1777287181416,-964.96,0.00038904,120]
[421252399,1777287181425,-529.41,0.00038904,120]
[421252400,1777287181434,-281.57646573,0.00038904,120]
[421252401,1777287181443,-160.26300107,0.00038904,120]
[421252402,1777287181452,-1077.32,0.00038904,120]
[421252403,1777287181462,-949.83,0.00038904,120]
[421252404,1777287181472,-765.4,0.00038904,120]
[421252405,1777287181481,-599.76,0.00038904,120]
[421252406,1777287181490,-812.99,0.00038904,120]
[421252407,1777287181500,-1319.91,0.00038904,120]
[421252408,1777287181509,-559.35,0.00038904,120]
[421252409,1777287181519,-1706.39,0.00038904,120]
[421252410,1777287181527,-668.63,0.00038904,120]
[421252411,1777287181537,-1799.8,0.00038904,30]
[421252412,1777287181546,-2310.82,0.00038904,120]
[421252413,1777287181555,-951.83,0.00038904,120]
[421252414,1777287181564,-321.66605624,0.00038904,120]
[421252415,1777287181574,-691.55,0.00038904,120]
[421252416,1777287181583,-822.42,0.00038904,120]
[421252417,1777287181593,-1041.51,0.00038904,120]
[421252418,1777287181602,-690.22,0.00038904,120]
[421252419,1777287181611,-817.53,0.00038904,120]
[421252420,1777287181620,-812.8,0.00038904,120]
[421252421,1777287181629,-894.99,0.00038904,120]
[421252422,1777287181639,-1018.47,0.00038904,120]
[421252423,1777287181648,-1560.45,0.00038904,10]
[421252424,1777287181657,-654.65,0.00038904,120]
[421252425,1777287181666,-770.15,0.00038904,120]
[421252426,1777287181676,-747.23,0.00038904,120]
[421252427,1777287181685,-592.21,0.00038904,120]
[421252428,1777287181694,-1047.65,0.00038904,120]
[421252429,1777287181703,-548.93,0.00038904,120]
[421252430,1777287181713,-1885.25,0.00038904,120]
[421252431,1777287181722,-810.82,0.00038904,120]
[421252432,1777287181731,-632.88,0.00038904,120]
[421252433,1777287181740,-1242.85,0.00038904,120]
[421252434,1777287181749,-696.25,0.00038904,120]
[421252435,1777287181759,-1579.01,0.00038904,120]
[421252436,1777287181768,-601.37,0.00038904,120]
[421252437,1777287181777,-595.98,0.00038904,120]
[421252438,1777287181787,-1456.44,0.00038904,120]
[421252439,1777287181796,-500.0,0.00038904,120]
[421252440,1777287181806,-1572.92,0.00038904,120]
[421252441,1777287181815,-685.94,0.00038904,120]
[421252442,1777287181824,-1223.21,0.00038904,120]
[421252443,1777287181834,-996.26,0.00038904,120]
[421252444,1777287181843,-987.31,0.00038904,120]
[421252445,1777287181852,-977.11,0.00038904,120]
[421252446,1777287181861,-1114.4,0.00038904,120]
[421252447,1777287181871,-922.87,0.00038904,120]
[421252448,1777287181880,-694.64,0.00038904,120]
[421252449,1777287181889,-876.6,0.00038904,120]
[421252450,1777287181899,-1292.17,0.00038904,120]
[421252451,1777287181908,-537.7337979,0.00038904,120]
[421252452,1777287181917,-2804.65,0.00038904,120]
[421252453,1777287181927,-831.75,0.00038904,14]
[421252454,1777287181936,-695.08,0.00038904,120]
[421252455,1777287181945,-975.03,0.00038904,120]
[421252456,1777287181954,-667.25,0.00038904,120]
[421252457,1777287181964,-514.22,0.00038904,120]
[421252458,1777287181974,-808.81,0.00038904,120]
[421252459,1777287181983,-656.37,0.00038904,120]
[421252460,1777287181992,-1754.83,0.00038904,120]
[421252461,1777287182002,-809.84,0.00038904,120]
[421252462,1777287182012,-924.49,0.00038904,120]
[421252463,1777287182021,-816.58,0.00038904,120]
[421252464,1777287182031,-1699.99,0.00038904,120]
[421252465,1777287182040,-963.43,0.00038904,120]
[421252466,1777287182049,-988.21,0.00038904,120]
[421252467,1777287182059,-803.53,0.00038904,120]
[421252468,1777287182068,-983.75,0.00038904,120]
[421252469,1777287182078,-806.48,0.00038904,120]
[421252470,1777287182087,-1721.56,0.00038904,120]
[421252471,1777287182096,-899.89,0.00038904,120]
[421252472,1777287182106,-1666.52,0.00038904,120]
[421252473,1777287182116,-903.54,0.00038904,120]
[421252474,1777287182125,-640.16,0.00038904,120]
[421252475,1777287182135,-2805.42,0.00038904,120]
[421252476,1777287182145,-1658.74,0.00038904,120]
[421252477,1777287182154,-507.17,0.00038904,120]
[421252478,1777287182164,-760.12,0.00038904,120]
[421252479,1777287182173,-1131.48,0.00038904,120]
[421252480,1777287182183,-1275.35,0.00038904,120]
[421252481,1777287182192,-1186.63,0.00038904,120]
[421252482,1777287182201,-726.02,0.00038904,120]
[421252483,1777287182211,-1746.47,0.00038904,120]
[421252484,1777287182220,-857.8,0.00038904,120]
[421252485,1777287182229,-942.29,0.00038904,120]
[421252486,1777287182238,-888.77,0.00038904,120]
[421252487,1777287182248,-615.52,0.00038904,120]
[421252488,1777287182257,-691.21,0.00038904,120]
[421252489,1777287182267,-1549.89,0.00038904,120]
[421252490,1777287182276,-597.1,0.00038904,120]
[421252491,1777287182286,-646.3,0.00038904,120]
[421252492,1777287182295,-516.45,0.00038904,120]
[421252493,1777287182305,-996.25,0.00038904,120]
[421252494,1777287182315,-729.86,0.00038904,120]
[421252495,1777287182324,-862.2,0.00038904,120]
[421252496,1777287182334,-902.68,0.00038904,120]
[421252497,1777287182343,-932.95,0.00038904,120]
[421252498,1777287182353,-932.07,0.00038904,120]
[421252499,1777287182362,-501.5,0.00038904,120]
[421252500,1777287182372,-638.61,0.00038904,120]
[421252501,1777287182381,-946.6,0.00038904,120]
[421252502,1777287182391,-1014.18,0.00038904,120]
[421252503,1777287182400,-714.89,0.00038904,120]
[421252504,1777287182409,-1988.17,0.00038904,120]
[421252505,1777287182419,-563.81,0.00038904,120]
[421252506,1777287182429,-1640.34,0.00038904,120]
[421252507,1777287182438,-356.49469607,0.00038904,120]
[421252508,1777287182448,-885.91,0.00038904,120]
[421252509,1777287182457,-891.92,0.00038904,120]
[421252510,1777287182467,-669.56,0.00038904,120]
[421252511,1777287182476,-387.58024499,0.00038904,120]
[421252512,1777287182486,-1390.78,0.00038904,120]
[421252513,1777287182496,-668.1,0.00038904,120]
[421252514,1777287182505,-660.18,0.00038904,120]
[421252515,1777287182514,-691.69,0.00038904,120]
[421252516,1777287182524,-691.03,0.00038904,120]
[421252517,1777287182534,-618.59,0.00038904,30]
[421252518,1777287182543,-922.63,0.00038904,120]
[421252519,1777287182553,-953.58,0.00038904,120]
[421252520,1777287182563,-525.11,0.00038904,120]
[421252521,1777287182572,-4917.9,0.00038904,120]
[421252522,1777287182582,-551.36,0.00038904,120]
[421252523,1777287182591,-840.29,0.00038904,120]
[421252524,1777287182601,-1800.54,0.00038904,120]
[421252525,1777287182611,-919.84,0.00038904,120]
[421252526,1777287182620,-739.88,0.00038904,120]
[421252527,1777287182630,-619.21523974,0.00038904,120]
[421252528,1777287182639,-1344.25,0.00038904,120]
[421252529,1777287182649,-916.78,0.00038904,120]
[421252530,1777287182659,-1078.03,0.00038904,120]
[421252531,1777287182668,-1345.97,0.00038904,120]
[421252532,1777287182678,-947.63,0.00038904,120]
[421252533,1777287182688,-549.91,0.00038904,120]
[421252534,1777287182698,-748.29,0.00038904,120]
[421252535,1777287182707,-1742.02,0.00038904,120]
[421252536,1777287182716,-980.13,0.00038904,120]
[421252537,1777287182726,-547.89,0.00038904,120]
[421252538,1777287182736,-808.71,0.00038904,120]
[421252539,1777287182746,-697.0,0.00038904,120]
[421252540,1777287182755,-698.74,0.00038904,120]
[421252541,1777287182765,-861.18,0.00038904,120]
[421252542,1777287182774,-599.72,0.00038904,120]
[421252543,1777287182784,-971.15,0.00038904,120]
[421252544,1777287182794,-1898.91,0.00038904,120]
[421252545,1777287182803,-2008.02,0.00038904,120]
[421252546,1777287182812,-546.88,0.00038904,120]
[421252547,1777287182822,-933.2,0.00038904,120]
[421252548,1777287182831,-923.43,0.00038904,120]
[421252549,1777287182840,-814.23,0.00038904,7]
[421252550,1777287182850,-641.63550287,0.00038904,120]
[421252551,1777287182859,-545.89,0.00038904,120]
[421252552,1777287182868,-607.22,0.00038904,120]
[421252553,1777287182878,-1022.01,0.00038904,120]
[421252554,1777287182888,-1403.37,0.00038904,120]
[421252555,1777287182897,-996.98,0.00038904,120]
[421252556,1777287182906,-571.92,0.00038904,120]
[421252557,1777287182916,-2027.39,0.00038904,120]
[421252558,1777287182925,-544.78,0.00038904,120]
[421252559,1777287182934,-1173.63,0.00038904,120]
[421252560,1777287182944,-580.92,0.00038904,120]
[421252561,1777287182955,-957.19,0.00038904,120]
[421252562,1777287182964,-1129.42,0.00038904,120]
[421252563,1777287182973,-549.6,0.00038904,120]
[421252564,1777287182983,-957.72,0.00038904,120]
[421252565,1777287182993,-2273.93,0.00038904,120]
[421252566,1777287183003,-531.34,0.00038904,120]
[421252567,1777287183013,-826.33,0.00038904,120]
[421252568,1777287183023,-509.36,0.00038904,120]
[421252569,1777287183032,-1144.83,0.00038904,120]
[421252570,1777287183042,-870.72,0.00038904,120]
[421252571,1777287183051,-1987.57,0.00038904,120]
[421252572,1777287183060,-1889.91,0.00038904,120]
[421252573,1777287183070,-997.41,0.00038904,120]
[421252574,1777287183079,-645.47,0.00038904,120]
[421252575,1777287183089,-551.39,0.00038904,120]
[421252576,1777287183098,-607.71,0.00038904,120]
[421252577,1777287183108,-1410.28,0.00038904,120]
[421252578,1777287183117,-1075.28,0.00038904,120]
[421252579,1777287183127,-512.2,0.00038904,120]
[421252580,1777287183136,-571.84,0.00038904,120]
[421252581,1777287183147,-670.88,0.00038904,120]
[421252582,1777287183156,-927.87,0.00038904,120]
[421252583,1777287183166,-733.46,0.00038904,120]
[421252584,1777287183176,-845.56,0.00038904,120]
[421252585,1777287183185,-1708.75,0.00038904,120]
[421252586,1777287183194,-1389.02,0.00038904,120]
[421252587,1777287183203,-969.99,0.00038904,120]
[421252588,1777287183213,-721.4,0.00038904,120]
[421252589,1777287183223,-832.2,0.00038904,120]
[421252590,1777287183232,-1256.96,0.00038904,120]
[421252591,1777287183242,-822.73,0.00038904,120]
[421252592,1777287183251,-599.41,0.00038904,30]
[421252593,1777287183260,-1697.87,0.00038904,120]
[421252594,1777287183270,-740.81,0.00038904,120]
[421252595,1777287183279,-767.5,0.00038904,120]
[421252596,1777287183289,-704.65,0.00038904,120]
[421252597,1777287183299,-874.64,0.00038904,120]
[421252598,1777287183308,-725.79,0.00038904,120]
[421252599,1777287183318,-539.51,0.00038904,120]
[421252600,1777287183327,-3139.33,0.00038904,120]
[421252601,1777287183337,-1571.63,0.00038904,120]
[421252602,1777287183346,-631.89,0.00038904,120]
[421252603,1777287183356,-724.47,0.00038904,120]
[421252604,1777287183366,-714.42,0.00038904,120]
[421252605,1777287183375,-830.35,0.00038904,120]
[421252606,1777287183384,-529.87,0.00038904,120]
[421252607,1777287183394,-890.53,0.00038904,120]
[421252608,1777287183403,-633.28,0.00038904,120]
[421252609,1777287183412,-1042.08,0.00038904,120]
[421252610,1777287183422,-1031.26,0.00038904,120]
[421252611,1777287183431,-789.82,0.00038904,120]
[421252612,1777287183441,-1044.44,0.00038904,7]
[421252613,1777287183450,-2152.64,0.00038904,120]
[421252614,1777287183459,-951.45,0.00038904,120]
[421252615,1777287183469,-10570.76,0.00038904,120]
[421252616,1777287183479,-953.25,0.00038904,120]
[421252617,1777287183488,-683.94,0.00038904,120]
[421252618,1777287183498,-294.77504367,0.00038904,120]
[421252619,1777287183508,-1457.61,0.00038904,120]
[421252620,1777287183517,-853.59,0.00038904,120]
[421252621,1777287183526,-927.26,0.00038904,120]
[421252622,1777287183536,-692.0,0.00038904,120]
[421252623,1777287183548,-1072.51,0.00038904,120]
[421252624,1777287183557,-2915.57,0.00038904,120]
[421252625,1777287183567,-731.44,0.00038904,120]
[421252626,1777287183576,-701.43,0.00038904,120]
[421252627,1777287183586,-954.88,0.00038904,120]
[421252628,1777287183597,-838.15,0.00038904,120]
[421252629,1777287183606,-1783.16,0.00038904,120]
[421252630,1777287183616,-4705.11,0.00038904,120]
[421252631,1777287183625,-1730.6,0.00038904,120]
[421252632,1777287183635,-1123.77,0.00038904,120]
[421252633,1777287183644,-714.81,0.00038904,120]
[421252634,1777287183654,-1408.68,0.00038904,120]
[421252635,1777287183664,-5381.05,0.00038904,120]
[421252636,1777287183674,-667.82,0.00038904,120]
[421252637,1777287183683,-1779.59,0.00038904,120]
[421252638,1777287183694,-922.62,0.00038904,120]
[421252639,1777287183703,-625.44,0.00038904,5]
[421252640,1777287183713,-1690.78,0.00038904,120]
[421252641,1777287183723,-674.61,0.00038904,120]
[421252642,1777287183735,-2035.1,0.00038904,120]
[421252643,1777287183745,-1164.41,0.00038904,120]
[421252644,1777287183755,-1082.08,0.00038904,120]
[421252645,1777287183765,-500.0,0.00038904,120]
[421252646,1777287183775,-998.96,0.00038904,120]
[421252647,1777287183784,-1043.04,0.00038904,120]
[421252648,1777287183794,-784.08,0.00038904,120]
[421252649,1777287183804,-1079.64,0.00038904,120]
[421252650,1777287183814,-1143.94,0.00038904,120]
[421252651,1777287183825,-1451.57,0.00038904,120]
[421252652,1777287183835,-819.21,0.00038904,120]
[421252653,1777287183844,-1138.56,0.00038904,120]
[421252654,1777287183854,-601.09,0.00038904,120]
[421252655,1777287183864,-4201.7,0.00038904,120]
[421252656,1777287183874,-1047.55,0.00038904,120]
[421252657,1777287183883,-996.55,0.00038904,120]
[421252658,1777287183893,-795.18,0.00038904,120]
[421252659,1777287183903,-1162.36,0.00038904,120]
[421252660,1777287183913,-541.91,0.00038904,120]
[421252661,1777287183923,-845.1,0.00038904,120]
[421252662,1777287183933,-1487.38,0.00038904,120]
[421252663,1777287183943,-898.94,0.00038904,120]
[421252664,1777287183953,-2636.09,0.00038904,120]
[421252665,1777287183963,-574.3145969,0.00038904,120]
[421252666,1777287183974,-1789.45,0.00038904,120]
[421252667,1777287183984,-500.62,0.00038904,120]
[421252668,1777287183994,-892.08,0.00038904,120]
[421252669,1777287184006,-1085.3,0.00038904,120]
[421252670,1777287184021,-631.37,0.00038904,120]
[421252671,1777287184033,-581.62,0.00038904,120]
[421252672,1777287184043,-808.43,0.00038904,120]
[421252673,1777287184054,-741.62,0.00038904,120]
[421252674,1777287184065,-762.27,0.00038904,120]
[421252675,1777287184075,-1157.96,0.00038904,120]
[421252676,1777287184084,-633.93,0.00038904,120]
[421252677,1777287184095,-874.69,0.00038904,120]
[421252678,1777287184105,-900.98,0.00038904,120]
[421252679,1777287184116,-10204.73,0.00038904,120]
[421252680,1777287184126,-1526.17,0.00038904,120]
[421252681,1777287184137,-891.6,0.00038904,120]
[421252682,1777287184148,-1367.53,0.00038904,120]
[421252683,1777287184160,-683.25,0.00038904,120]
[421252684,1777287184171,-737.72,0.00038904,120]
[421252685,1777287184181,-10627.51,0.00038904,11]
[421252686,1777287184191,-1508.4,0.00038904,120]
[421252687,1777287184201,-944.61,0.00038904,120]
[421252688,1777287184211,-1952.39,0.00038904,120]
[421252689,1777287184221,-992.31,0.00038904,120]
[421252690,1777287184231,-644.32,0.00038904,120]
[421252691,1777287184241,-855.86,0.00038904,120]
[421252692,1777287184251,-938.15,0.00038904,120]
[421252693,1777287184261,-976.87,0.00038904,120]
[421252694,1777287184271,-505.03,0.00038904,120]
[421252695,1777287184283,-889.14,0.00038904,120]
[421252696,1777287184293,-816.73,0.00038904,120]
[421252697,1777287184303,-624.72,0.00038904,120]
[421252698,1777287184314,-9821.09,0.00038904,14]
[421252699,1777287184324,-523.03,0.00038904,120]
[421252700,1777287184335,-2650.84,0.00038904,2]
[421252701,1777287184345,-628.2511071,0.00038904,120]
[421252702,1777287184355,-822.98,0.00038904,120]
[421252703,1777287184365,-729.37,0.00038904,120]
[421252704,1777287184375,-1000.0,0.00038904,120]
[421252705,1777287184385,-1044.79,0.00038904,120]
[421252706,1777287184395,-2033.75,0.00038904,120]
[421252707,1777287184405,-2315.34,0.00038904,120]
[421252708,1777287184415,-872.94,0.00038904,120]
[421252709,1777287184425,-1144.22,0.00038904,120]
[421252710,1777287184435,-957.71,0.00038904,120]
[421252711,1777287184445,-651.78,0.00038904,120]
[421252712,1777287184455,-905.69,0.00038904,120]
[421252713,1777287184465,-659.77,0.00038904,120]
[421252714,1777287184475,-572.93,0.00038904,120]
[421252715,1777287184764,-526.89,0.00038904,120]
[421252716,1777287184777,-936.24,0.00038904,120]
[421252717,1777287184787,-2198.73,0.00038904,31]
[421252718,1777287184797,-7236.62,0.00038904,120]
[421252719,1777287184807,-601.2,0.00038904,120]
[421252720,1777287184817,-2126.0759,0.00038909,2]
[421252721,1777287184827,-6616.9285,0.00038909,2]
[421252722,1777287184837,-184.04815743,0.00038914,120]
[421252723,1777287184846,-170.4716336,0.00038914,120]
[421252724,1777287184856,-458.41,0.00038971,30]
[421252725,1777287184866,-50000.0,0.00039,21]
[421252726,1777287184876,-5000.0,0.00039,21]
[421252727,1777287184886,-5000.0,0.00039,2]
[421252728,1777287184896,-1964.94553175,0.00039,120]
[421252729,1777287184905,-2023.5,0.00039,30]
[421252730,1777287184915,-160.0,0.00039,120]
[421252731,1777287184925,-212.0,0.00039,2]
[421252732,1777287184935,-271.7981911,0.00039033,2]
[421252733,1777287184944,-6616.9285,0.00039048,2]
[421252734,1777287184954,-2126.0759,0.00039058,2]
[421252735,1777287184964,-4203.68268519,0.00039087,120]
[421252736,1777287184973,-300.0,0.00039096,2]
[421252737,1777287184983,-300.0,0.00039096,2]
[421252738,1777287184993,-300.0,0.00039096,2]
[421252739,1777287185002,-300.0,0.00039096,2]
[421252740,1777287185012,-300.0,0.00039096,2]
[421252741,1777287185021,-300.0,0.00039096,2]
[421252742,1777287185031,-300.0,0.00039096,2]
[421252743,1777287185041,-300.0,0.00039096,2]
[421252744,1777287185051,-300.0,0.00039096,2]
[421252745,1777287185060,-300.0,0.00039096,2]
[421252746,1777287185070,-300.0,0.00039096,2]
[421252747,1777287185080,-300.0,0.00039096,2]
[421252748,1777287185090,-300.0,0.00039096,2]
[421252749,1777287185100,-300.0,0.00039096,2]
[421252750,1777287185110,-300.0,0.00039096,2]
[421252751,1777287185120,-300.0,0.00039096,2]
[421252752,1777287185130,-300.0,0.00039096,2]
[421252753,1777287185140,-300.0,0.00039096,2]
[421252754,1777287185150,-300.0,0.00039096,2]
[421252755,1777287185160,-300.0,0.00039096,2]
[421252756,1777287185169,-300.0,0.00039096,2]
[421252757,1777287185179,-300.0,0.00039096,2]
[421252758,1777287185189,-300.0,0.00039096,2]
[421252759,1777287185199,-300.0,0.00039096,2]
[421252760,1777287185208,-300.0,0.00039096,2]
[421252761,1777287185217,-300.0,0.00039096,2]
[421252762,1777287185227,-2000.0,0.00039117,120]
[421252763,1777287185236,-212.39447274,0.00039139,120]
[421252764,1777287185247,-150.0,0.00039163,2]
[421252765,1777287185256,-5800.0,0.00039175,14]
[421252766,1777287185266,-40919.97351001,0.00039178,120]
[421252767,1777287185275,-5510.884336,0.00039178,120]
[421252768,1777287185285,-406.931409,0.00039178,120]
[421252769,1777287185294,-325.762595,0.00039178,120]
[421252770,1777287185304,-342.964341,0.00039178,120]
[421252771,1777287185314,-2698.281126,0.00039178,120]
[421252772,1777287185324,-863.55602243,0.00039178,120]
[421252773,1777287185333,-599.23,0.00039178,120]
[421252774,1777287185343,-640.89970642,0.00039178,120]
[421252775,1777287185353,-565.67474528,0.00039178,120]
[421252776,1777287185362,-1212.14639577,0.00039178,120]
[421252777,1777287185372,-553.61192009,0.00039178,120]
[421252778,1777287185381,-715.20225203,0.00039178,120]
[421252779,1777287185390,-938.64772374,0.00039178,120]
[421252780,1777287185399,-1090.40113811,0.00039178,120]
[421252781,1777287185408,-635.13388689,0.00039178,120]
[421252782,1777287185418,-528.22299476,0.00039178,120]
[421252783,1777287185427,-1072.5,0.00039178,120]
[421252784,1777287185436,-1314.52816461,0.00039178,120]
[421252785,1777287185446,-703.57294719,0.00039178,120]
[421252786,1777287185456,-787.8141421,0.00039178,120]
[421252787,1777287185465,-516.81023401,0.00039178,120]
[421252788,1777287185474,-2357.53471348,0.00039178,120]
[421252789,1777287185484,-1649.98562853,0.00039178,30]
[421252790,1777287185493,-527.84851024,0.00039178,120]
[421252791,1777287185503,-663.99210064,0.00039178,120]
[421252792,1777287185513,-753.0167831,0.00039178,120]
[421252793,1777287185522,-696.3782069,0.00039178,120]
[421252794,1777287185532,-1447.15993441,0.00039178,120]
[421252795,1777287185541,-965.08770802,0.00039178,120]
[421252796,1777287185554,-529.63533126,0.00039178,120]
[421252797,1777287185564,-1077.39572043,0.00039178,120]
[421252798,1777287185574,-950.05244558,0.00039178,120]
[421252799,1777287185584,-765.56592377,0.00039178,120]
[421252800,1777287185593,-599.77926521,0.00039178,120]
[421252801,1777287185603,-813.19204927,0.00039178,120]
[421252802,1777287185612,-559.43761493,0.00039178,120]
[421252803,1777287185624,-1320.10455829,0.00039178,120]
[421252804,1777287185633,-1706.58053238,0.00039178,120]
[421252805,1777287185643,-668.80564381,0.00039178,120]
[421252806,1777287185652,-1799.97493688,0.00039178,30]
[421252807,1777287185662,-2310.82094335,0.00039178,120]
[421252808,1777287185671,-952.03454556,0.00039178,120]
[421252809,1777287185680,-691.76142656,0.00039178,120]
[421252810,1777287185690,-822.46844265,0.00039178,120]
[421252811,1777287185700,-690.26188761,0.00039178,120]
[421252812,1777287185709,-1041.61123594,0.00039178,120]
[421252813,1777287185719,-817.57345932,0.00039178,120]
[421252814,1777287185728,-812.88398868,0.00039178,120]
[421252815,1777287185737,-895.05951947,0.00039178,120]
[421252816,1777287185747,-1018.57253005,0.00039178,120]
[421252817,1777287185756,-1560.54424656,0.00039178,10]
[421252818,1777287185765,-654.75074465,0.00039178,120]
[421252819,1777287185775,-770.27321442,0.00039178,120]
[421252820,1777287185785,-747.25369767,0.00039178,120]
[421252821,1777287185794,-592.26,0.00039178,120]
[421252822,1777287185804,-1047.8763711,0.00039178,120]
[421252823,1777287185813,-549.08,0.00039178,120]
[421252824,1777287185823,-1885.35811678,0.00039178,120]
[421252825,1777287185832,-810.8710674,0.00039178,120]
[421252826,1777287185842,-633.11829842,0.00039178,120]
[421252827,1777287185851,-1242.91263948,0.00039178,120]
[421252828,1777287185861,-696.46269655,0.00039178,120]
[421252829,1777287185870,-1579.01304216,0.00039178,120]
[421252830,1777287185879,-601.50354022,0.00039178,120]
[421252831,1777287185888,-595.99678859,0.00039178,120]
[421252832,1777287185898,-1456.63195694,0.00039178,120]
[421252833,1777287185908,-397.27413591,0.00039178,120]
[421252834,1777287185917,-1572.95468987,0.00039178,120]
[421252835,1777287185926,-686.03757341,0.00039178,120]
[421252836,1777287185936,-1223.28163901,0.00039178,120]
[421252837,1777287185945,-996.48736856,0.00039178,120]
[421252838,1777287185955,-987.52538577,0.00039178,120]
[421252839,1777287185964,-977.25662503,0.00039178,120]
[421252840,1777287185975,-1114.4217182,0.00039178,120]
[421252841,1777287185986,-923.10213452,0.00039178,120]
[421252842,1777287186005,-694.74752899,0.00039178,120]
[421252843,1777287186021,-876.61973719,0.00039178,120]
[421252844,1777287186030,-1292.33077675,0.00039178,120]
[421252845,1777287186039,-2804.78500083,0.00039178,120]
[421252846,1777287186048,-831.77790073,0.00039178,14]
[421252847,1777287186058,-695.25521547,0.00039178,120]
[421252848,1777287186067,-975.1319111,0.00039178,120]
[421252849,1777287186076,-667.36782412,0.00039178,120]
[421252850,1777287186086,-514.41734738,0.00039178,120]
[421252851,1777287186096,-808.89531947,0.00039178,120]
[421252852,1777287186106,-656.51703345,0.00039178,120]
[421252853,1777287186116,-1754.91264651,0.00039178,120]
[421252854,1777287186126,-810.06060258,0.00039178,120]
[421252855,1777287186136,-924.69996713,0.00039178,120]
[421252856,1777287186145,-816.7341308,0.00039178,120]
[421252857,1777287186155,-1700.01547378,0.00039178,120]
[421252858,1777287186164,-963.6640581,0.00039178,120]
[421252859,1777287186174,-988.30986848,0.00039178,120]
[421252860,1777287186183,-803.54329025,0.00039178,120]